{"text_format":"3","workbook":"xlsx","n_sheets":1,"sheets":["Despesas iniciais"],"not_rendered":{"defined_names":1},"read":"whole","date_system":"1900"}

{"sheet":"Despesas iniciais","index":0,"n_rows":120,"n_cols":4,"rows_kept":120,"merged":[[1,1,1,3],[10,1,10,3],[17,1,17,3],[25,1,25,3],[34,1,34,3],[42,1,42,3],[50,1,50,3],[55,1,55,3],[57,1,57,3],[59,1,59,3],[60,1,60,3],[69,1,69,3],[76,1,76,3],[81,1,81,3],[82,1,82,3],[90,1,90,3],[102,1,102,3],[110,1,110,3],[115,1,115,3]]}
["DESPESAS INICIAIS",null,null,"NOME DA EMPRESA, LTD"]
[null,"UMA OBSERVAÇÃO ANTES DE USAR ESTA PLANILHA\nPraticamente todas as pessoas que já abriram uma empresa subestimaram os custos e correram o risco de trabalhar com reservas de capital inadequadas. Para evitar este problema, é fundamental adotar uma abordagem rigorosa para a pesquisa e o planejamento. Nosso modelo Despesas iniciais orientará você durante o processo.\n\nCOMECE ESTIMANDO AS DESPESAS\nQuanto custará para colocar sua empresa em funcionamento? Para garantir a precisão, é preciso ter atenção aos detalhes. Para cada categoria de despesa, prepare uma lista de tudo o que você precisará adquirir. Isso inclui ativos tangíveis (por exemplo, equipamentos, inventário) e serviços (por exemplo, reforma, seguro). Determine onde você pode comprar estes produtos ou serviços. Pesquise mais de um fornecedor. Por exemplo: comparação de lojas. Não examine apenas o preço; os termos de pagamento, a entrega, a confiabilidade e os serviços também são importantes. "]
[]
[null,"DESPESAS INICIAIS"]
[null,"CONSTRUÇÃO/IMÓVEIS"," ","VALOR"]
[null,"Preço",null,{"v":0,"d":"R$ 0.00"}]
[null,"Construção",null,{"v":0,"d":"R$ 0.00"}]
[null,"Reforma",null,{"v":0,"d":"R$ 0.00"}]
[null,"Outros",null,{"v":0,"d":"R$ 0.00"}]
[null,"Total",null,{"$f":"SUBTOTAL(109,Imóveis[VALOR])","v":{"v":0,"d":"R$ 0.00"}}]
[]
[null,"BENFEITORIAS EM PROPRIEDADE ARRENDADA"," ","VALOR"]
[null,"Item 1",null,{"v":0,"d":"R$ 0.00"}]
[null,"Item 2",null,{"v":0,"d":"R$ 0.00"}]
[null,"Item 3",null,{"v":0,"d":"R$ 0.00"}]
[null,"Item 4",null,{"v":0,"d":"R$ 0.00"}]
[null,"Total",null,{"$f":"SUBTOTAL(109,Melhorias[VALOR])","v":{"v":0,"d":"R$ 0.00"}}]
[]
[null,"LISTA DE EQUIPAMENTOS DE CAPITAL"," ","VALOR"]
[null,"Móveis",null,{"v":0,"d":"R$ 0.00"}]
[null,"Equipamentos",null,{"v":0,"d":"R$ 0.00"}]
[null,"Acessórios",null,{"v":0,"d":"R$ 0.00"}]
[null,"Máquinas",null,{"v":0,"d":"R$ 0.00"}]
[null,"Outros",null,{"v":0,"d":"R$ 0.00"}]
[null,"Total",null,{"$f":"SUBTOTAL(109,Capital[VALOR])","v":{"v":0,"d":"R$ 0.00"}}]
[]
[null,"DESPESAS DE ADMINISTRAÇÃO E DO LOCAL"," ","VALOR"]
[null,"Aluguel",null,{"v":0,"d":"R$ 0.00"}]
[null,"Pagamento de contas públicas",null,{"v":0,"d":"R$ 0.00"}]
[null,"Taxas legais e de contabilidade",null,{"v":0,"d":"R$ 0.00"}]
[null,"Seguro pré-pago",null,{"v":0,"d":"R$ 0.00"}]
[null,"Salários antes da abertura ",null,{"v":0,"d":"R$ 0.00"}]
[null,"Outros",null,{"v":0,"d":"R$ 0.00"}]
[null,"Total",null,{"$f":"SUBTOTAL(109,DespesasDeAdministração[VALOR])","v":{"v":0,"d":"R$ 0.00"}}]
[]
[null,"INVENTÁRIO INICIAL"," ","VALOR"]
[null,"Categoria 1",null,{"v":0,"d":"R$ 0.00"}]
[null,"Categoria 2",null,{"v":0,"d":"R$ 0.00"}]
[null,"Categoria 3",null,{"v":0,"d":"R$ 0.00"}]
[null,"Categoria 4",null,{"v":0,"d":"R$ 0.00"}]
[null,"Categoria 5",null,{"v":0,"d":"R$ 0.00"}]
[null,"Total",null,{"$f":"SUBTOTAL(109,InventárioInicial[VALOR])","v":{"v":0,"d":"R$ 0.00"}}]
[]
[null,"DESPESAS PROMOCIONAIS E DE PUBLICIDADE"," ","VALOR"]
[null,"Publicidade",null,{"v":0,"d":"R$ 0.00"}]
[null,"Sinalização",null,{"v":0,"d":"R$ 0.00"}]
[null,"Impressão",null,{"v":0,"d":"R$ 0.00"}]
[null,"Viagem/entretenimento",null,{"v":0,"d":"R$ 0.00"}]
[null,"Outras categorias/categorias adicionais",null,{"v":0,"d":"R$ 0.00"}]
[null,"Total",null,{"$f":"SUBTOTAL(109,DespesasPromocionais[VALOR])","v":{"v":0,"d":"R$ 0.00"}}]
[]
[null,"OUTRAS DESPESAS"," ","VALOR"]
[null,"Outras despesas 1",null,{"v":0,"d":"R$ 0.00"}]
[null,"Outras despesas 2",null,{"v":0,"d":"R$ 0.00"}]
[null,"Total",null,{"$f":"SUBTOTAL(109,OutrasDespesas[VALOR])","v":{"v":0,"d":"R$ 0.00"}}]
[]
[null,"Reserva para contingências",null,{"v":0,"d":"R$ 0.00"}]
[]
[null,"Capital de giro ",null,{"v":0,"d":"R$ 0.00"}]
[]
[null,"ADICIONAR UMA RESERVA PARA CONTINGÊNCIAS\nExplique em sua apresentação como você decidiu quanto à quantidade que está incluindo nesta reserva. \n\nDETERMINAR SEU FLUXO DE CAIXA\nVocê não pode abrir com uma conta bancária vazia. Você precisa de uma reserva de dinheiro para cobrir as despesas enquanto a empresa está começando. Por fim, você deve fazer uma projeção de fluxo de caixa de 12 meses. Essa projeção é onde você calculará sua estimativa para as necessidades de capital de giro. Por enquanto, deixe esta linha em branco ou insira sua melhor estimativa aproximada. Após concluir o fluxo de caixa, você pode voltar e inserir o valor pesquisado cuidadosamente.\n\nINSIRA SUAS FONTES DE CAPITAL\nAgora que estimou o capital necessário para começar, você deve se concentrar na parte superior desta planilha. Insira os valores que você mesmo fornecerá, quanto será fornecido por parceiros ou investidores e quanto será fornecida por empréstimos."]
[]
[null,"FONTES DE CAPITAL"]
[null,"INVESTIMENTO DO PROPRIETÁRIO (NOME E % DE PROPRIEDADE)"," ","VALOR"]
[null,"Seu nome e a porcentagem de propriedade",null,{"v":0,"d":"R$ 0.00"}]
[null,"Outro investidor",null,{"v":0,"d":"R$ 0.00"}]
[null,"Outro investidor",null,{"v":0,"d":"R$ 0.00"}]
[null,"Outro investidor",null,{"v":0,"d":"R$ 0.00"}]
[null,"Total",null,{"$f":"SUBTOTAL(109,InvestimentosDeProprietários[VALOR])","v":{"v":0,"d":"R$ 0.00"}}]
[]
[null,"EMPRÉSTIMOS BANCÁRIOS"," ","VALOR"]
[null,"Banco 1",null,{"v":0,"d":"R$ 0.00"}]
[null,"Banco 2",null,{"v":0,"d":"R$ 0.00"}]
[null,"Banco 3",null,{"v":0,"d":"R$ 0.00"}]
[null,"Banco 4",null,{"v":0,"d":"R$ 0.00"}]
[null,"Total",null,{"$f":"SUBTOTAL(109,EmpréstimosBancários[VALOR])","v":{"v":0,"d":"R$ 0.00"}}]
[]
[null,"OUTROS EMPRÉSTIMOS"," ","VALOR"]
[null,"Fonte 1",null,{"v":0,"d":"R$ 0.00"}]
[null,"Fonte 2",null,{"v":0,"d":"R$ 0.00"}]
[null,"Total",null,{"$f":"SUBTOTAL(109,OutrosEmpréstimos[VALOR])","v":{"v":0,"d":"R$ 0.00"}}]
[]
[null,"FORNECER PROVA DE GARANTIA\nSe você pretende usar este plano para validar uma solicitação de empréstimo, use a seção na parte inferior para mostrar quais ativos são oferecidos como garantia para proteger o empréstimo e uma estimativa do valor desses itens. Esteja preparado para oferecer provas de suas estimativas de valores de garantia."]
[]
[null,"DEMONSTRATIVO DE RESUMIDO"]
[null,"FONTE DE CAPITAL"," ","TOTAIS"]
[null,"Investimentos dos proprietários e outros investimentos",null,{"$f":"InvestimentosDeProprietários[[#Totals],[VALOR]]","v":{"v":0,"d":"R$ 0.00"}}]
[null,"Empréstimos bancários",null,{"$f":"EmpréstimosBancários[[#Totals],[VALOR]]","v":{"v":0,"d":"R$ 0.00"}}]
[null,"Outros empréstimos",null,{"$f":"OutrosEmpréstimos[[#Totals],[VALOR]]","v":{"v":0,"d":"R$ 0.00"}}]
[null,"Total",null,{"$f":"SUBTOTAL(109,FontesDeCapital[TOTAIS])","v":{"v":0,"d":"R$ 0.00"}}]
[]
[null,"DESPESAS INICIAIS"," ","TOTAIS"]
[null,"Construção/imóveis",null,{"$f":"Imóveis[[#Totals],[VALOR]]","v":{"v":0,"d":"R$ 0.00"}}]
[null,"Benfeitorias em propriedade arrendada",null,{"$f":"Melhorias[[#Totals],[VALOR]]","v":{"v":0,"d":"R$ 0.00"}}]
[null,"Equipamento de capital",null,{"$f":"Capital[[#Totals],[VALOR]]","v":{"v":0,"d":"R$ 0.00"}}]
[null,"Despesas de administração/local",null,{"$f":"DespesasDeAdministração[[#Totals],[VALOR]]","v":{"v":0,"d":"R$ 0.00"}}]
[null,"Inventário inicial",null,{"$f":"InventárioInicial[[#Totals],[VALOR]]","v":{"v":0,"d":"R$ 0.00"}}]
[null,"Despesas promocionais/de publicidade",null,{"$f":"DespesasPromocionais[[#Totals],[VALOR]]","v":{"v":0,"d":"R$ 0.00"}}]
[null,"Outras despesas",null,{"$f":"OutrasDespesas[[#Totals],[VALOR]]","v":{"v":0,"d":"R$ 0.00"}}]
[null,"Fundo de contingência",null,{"$f":"SUM('Despesas iniciais'!$C$57)","v":{"v":0,"d":"R$ 0.00"}}]
[null,"Capital de giro",null,{"$f":"SUM('Despesas iniciais'!$C$59)","v":{"v":0,"d":"R$ 0.00"}}]
[null,"Total",null,{"$f":"SUBTOTAL(109,DespesasIniciais[TOTAIS])","v":{"v":0,"d":"R$ 0.00"}}]
[]
[null,"SEGURANÇA E GARANTIA PARA PROPOSTA DE EMPRÉSTIMO"]
[null,"GARANTIA PARA EMPRÉSTIMOS","DESCRIÇÃO","VALOR"]
[null,"Imóveis",null,{"v":0,"d":"R$ 0.00"}]
[null,"Outras garantias",null,{"v":0,"d":"R$ 0.00"}]
[null,"Outras garantias",null,{"v":0,"d":"R$ 0.00"}]
[null,"Outras garantias",null,{"v":0,"d":"R$ 0.00"}]
[null,"Total",null,{"$f":"SUBTOTAL(109,Material_de_referência[VALOR])","v":{"v":0,"d":"R$ 0.00"}}]
[]
[null,"PROPRIETÁRIOS"," ","  "]
[null,"Seu nome aqui"]
[null,"Outro proprietário"]
[null,"Outro proprietário"]
[]
[null,"AVALISTAS DO EMPRÉSTIMO (QUE NÃO OS PROPRIETÁRIOS)"," ","  "]
[null,"Avalista de empréstimo 1"]
[null,"Avalista de empréstimo 2"]
[null,"Avalista de empréstimo 3"]